fUSD/lending_fUSD_20250812
["ID","MTS","AMOUNT","RATE_DAILY","PERIOD"]
[378711963,1754983843699,-174.61919141,0.00040998,120]
[378711965,1754983843709,-2105.41764886,0.00040998,120]
[378711967,1754983843718,-223.0315306,0.00040998,120]
[378711968,1754983843728,-250.0,0.00040998,120]
[378711969,1754983843737,-2183.31810187,0.00040998,120]
[378711970,1754983843746,-231.28369723,0.00040998,120]
[378711971,1754983843755,-250.0,0.00040998,120]
[378711972,1754983843764,-2264.10087164,0.00040998,120]
[378711973,1754983843773,-250.0,0.00040998,120]
[378711974,1754983843782,-239.84119403,0.00040998,120]
[378711975,1754983843791,-938.02205762,0.00040998,120]
[378711976,1754983843801,-2347.87260389,0.00040998,120]
[378711977,1754983843810,-250.0,0.00040998,120]
[378711978,1754983843819,-248.71531821,0.00040998,120]
[378711979,1754983843829,-2434.74389024,0.00040998,120]
[378711980,1754983843840,-257.91778498,0.00040998,120]
[378711981,1754983843849,-2524.82941417,0.00040998,120]
[378711982,1754983843858,-267.46074303,0.00040998,120]
[378711983,1754983843868,-2618.2481025,0.00040998,120]
[378711984,1754983843877,-2715.12328229,0.00040998,120]
[378711985,1754983843886,-277.35679052,0.00040998,120]
[378711986,1754983843895,-2815.58284374,0.00040998,120]
[378711987,1754983843906,-287.61899177,0.00040998,120]
[378711988,1754983843915,-2097.8444773,0.00040998,120]
[378711989,1754983844157,-821.91493165,0.00040998,120]
[378711990,1754983844167,-298.26089446,0.00040998,120]
[378711991,1754983844176,-832.22348891,0.00040998,120]
[378711992,1754983844188,-2195.56701818,0.00040998,120]
[378711993,1754983844197,-309.29654756,0.00040998,120]
[378711994,1754983844207,-3139.81875585,0.00040998,120]
[378711995,1754983844216,-1991.75259459,0.00040998,120]
[378711996,1754983844227,-374.15284629,0.00040998,120]
[378711998,1754983844236,-125.84715371,0.00040998,120]
[378712003,1754983846066,-150.0,0.00039981,2]
[378712004,1754983846075,-888.0,0.00040283,3]
[378712005,1754983846085,-194.89336611,0.00040998,120]
[378712006,1754983846094,-151.0,0.00040998,120]
[378712007,1754983846104,-332.60791905,0.00040998,120]
[378712008,1754983846114,-344.91441206,0.00040998,120]
[378712009,1754983846123,-357.6762453,0.00040998,120]
[378712010,1754983846133,-370.91026638,0.00040998,120]
[378712011,1754983846143,-384.63394623,0.00040998,120]
[378712012,1754983846152,-398.86540225,0.00040998,120]
[378712013,1754983846161,-151.0,0.00040998,120]
[378712014,1754983846171,-152.190923,0.00040999,30]
[378712015,1754983846180,-200.0,0.00040999,7]
[378712016,1754983846189,-221.8003096,0.00041,120]
[378712017,1754983846199,-249.12,0.00041013,2]
[378712018,1754983846208,-400.0,0.00041095,30]
[378712019,1754983846218,-400.0,0.00041095,30]
[378712020,1754983846227,-400.0,0.00041095,30]
[378712021,1754983846236,-403.09997513,0.00041095,30]
[378712022,1754983846245,-400.0,0.00041095,30]
[378712023,1754983846255,-400.0,0.00041095,30]
[378712024,1754983846264,-400.0,0.00041095,30]
[378712025,1754983846274,-400.0,0.00041095,30]
[378712026,1754983846283,-400.0,0.00041095,30]
[378712027,1754983846292,-400.0,0.00041095,30]
[378712028,1754983846301,-400.0,0.00041095,30]
[378712029,1754983846311,-400.0,0.00041095,30]
[378712030,1754983846320,-400.0,0.00041095,30]
[378712031,1754983846329,-400.0,0.00041095,30]
[378712032,1754983846339,-400.0,0.00041095,30]
[378712033,1754983846348,-400.0,0.00041095,30]
[378712034,1754983846357,-400.0,0.00041095,30]
[378712035,1754983846366,-289.16756786,0.00041095,30]
[378712036,1754983846376,-400.0,0.00041095,30]
[378712037,1754983846385,-400.0,0.00041095,30]
[378712038,1754983846395,-519.08437462,0.00041095,30]
[378712039,1754983846404,-400.0,0.00041095,30]
[378712040,1754983846413,-400.0,0.00041095,30]
[378712041,1754983846422,-400.0,0.00041095,30]
[378712042,1754983846432,-400.0,0.00041095,30]
[378712043,1754983846441,-400.0,0.00041095,30]
[378712044,1754983846450,-400.0,0.00041095,30]
[378712045,1754983846460,-400.0,0.00041095,30]
[378712046,1754983846470,-400.0,0.00041095,30]
[378712047,1754983846480,-400.0,0.00041095,30]
[378712048,1754983846490,-400.0,0.00041095,30]
[378712049,1754983846499,-400.0,0.00041095,30]
[378712050,1754983846509,-400.0,0.00041095,30]
[378712051,1754983846518,-2673.67,0.00041095,30]
[378712052,1754983846528,-400.0,0.00041095,30]
[378712053,1754983846538,-400.0,0.00041095,30]
[378712054,1754983846547,-400.0,0.00041095,30]
[378712055,1754983846556,-400.0,0.00041095,30]
[378712056,1754983846566,-400.0,0.00041095,30]
[378712057,1754983846576,-400.0,0.00041095,30]
[378712058,1754983846585,-400.0,0.00041095,30]
[378712059,1754983846595,-400.0,0.00041095,30]
[378712060,1754983846605,-400.0,0.00041095,30]
[378712061,1754983846614,-400.0,0.00041095,30]
[378712062,1754983846623,-400.0,0.00041095,30]
[378712063,1754983846632,-400.0,0.00041095,30]
[378712064,1754983846641,-400.0,0.00041095,30]
[378712065,1754983846651,-400.0,0.00041095,30]
[378712066,1754983846660,-400.0,0.00041095,30]
[378712067,1754983846670,-400.0,0.00041095,30]
[378712068,1754983846680,-400.0,0.00041095,30]
[378712069,1754983846689,-400.0,0.00041095,30]
[378712070,1754983846698,-400.0,0.00041095,30]
[378712071,1754983846708,-400.0,0.00041095,30]
[378712072,1754983846717,-400.0,0.00041095,30]
[378712073,1754983846727,-400.0,0.00041095,30]
[378712074,1754983846736,-400.0,0.00041095,30]
[378712075,1754983846745,-400.0,0.00041095,30]
[378712076,1754983846755,-400.0,0.00041095,30]
[378712077,1754983846764,-400.0,0.00041095,30]
[378712078,1754983846774,-400.0,0.00041095,30]
[378712079,1754983846783,-400.0,0.00041095,30]
[378712080,1754983846792,-400.0,0.00041095,30]
[378712081,1754983846803,-408.78284574,0.00041095,30]
[378712082,1754983846814,-400.0,0.00041095,30]
[378712083,1754983846824,-400.0,0.00041095,30]
[378712084,1754983846838,-400.0,0.00041095,30]
[378712085,1754983846849,-400.0,0.00041095,30]
[378712086,1754983846859,-435.3,0.00041095,30]
[378712087,1754983846868,-400.0,0.00041095,30]
[378712088,1754983846879,-400.0,0.00041095,30]
[378712089,1754983846888,-400.0,0.00041095,30]
[378712090,1754983846898,-400.0,0.00041095,30]
[378712091,1754983846908,-400.0,0.00041095,30]
[378712092,1754983847062,-400.0,0.00041095,30]
[378712093,1754983847071,-400.0,0.00041095,30]
[378712094,1754983847080,-426.09,0.00041095,30]
[378712095,1754983847089,-400.0,0.00041095,30]
[378712096,1754983847099,-400.0,0.00041095,30]
[378712097,1754983847108,-508.94472159,0.00041095,30]
[378712098,1754983847118,-434.82223048,0.00041095,30]
[378712099,1754983847127,-400.0,0.00041095,30]
[378712100,1754983847137,-400.0,0.00041095,30]
[378712101,1754983847146,-400.0,0.00041095,30]
[378712102,1754983847155,-400.0,0.00041095,30]
[378712103,1754983847165,-400.0,0.00041095,30]
[378712104,1754983847174,-400.0,0.00041095,30]
[378712105,1754983847184,-400.0,0.00041095,30]
[378712106,1754983847193,-400.0,0.00041095,30]
[378712107,1754983847202,-400.0,0.00041095,30]
[378712108,1754983847211,-400.0,0.00041095,30]
[378712109,1754983847220,-400.0,0.00041095,30]
[378712110,1754983847230,-400.0,0.00041095,30]
[378712111,1754983847239,-400.0,0.00041095,30]
[378712112,1754983847248,-400.0,0.00041095,30]
[378712113,1754983847258,-400.0,0.00041095,30]
[378712114,1754983847267,-400.0,0.00041095,30]
[378712115,1754983847276,-400.0,0.00041095,30]
[378712116,1754983847291,-400.0,0.00041095,30]
[378712117,1754983847301,-400.0,0.00041095,30]
[378712118,1754983847310,-400.0,0.00041095,30]
[378712119,1754983847319,-500.0,0.00041095,30]
[378712120,1754983847328,-500.0,0.00041095,30]
[378712121,1754983847338,-500.0,0.00041095,30]
[378712122,1754983847347,-400.0,0.00041095,30]
[378712123,1754983847357,-400.0,0.00041095,30]
[378712124,1754983847366,-400.0,0.00041095,30]
[378712125,1754983847375,-400.0,0.00041095,30]
[378712126,1754983847385,-400.0,0.00041095,30]
[378712127,1754983847394,-400.0,0.00041095,30]
[378712128,1754983847403,-400.0,0.00041095,30]
[378712129,1754983847412,-400.0,0.00041095,30]
[378712130,1754983847422,-400.0,0.00041095,30]
[378712131,1754983847431,-400.0,0.00041095,30]
[378712132,1754983847440,-402.11308246,0.00041095,30]
[378712133,1754983847449,-400.0,0.00041095,30]
[378712134,1754983847459,-400.0,0.00041095,30]
[378712135,1754983847468,-400.0,0.00041095,30]
[378712136,1754983847478,-400.0,0.00041095,30]
[378712137,1754983847487,-400.0,0.00041095,30]
[378712138,1754983847496,-400.0,0.00041095,30]
[378712139,1754983847507,-400.0,0.00041095,30]
[378712140,1754983847516,-400.0,0.00041095,7]
[378712141,1754983847525,-400.0,0.00041095,30]
[378712142,1754983847535,-400.0,0.00041095,30]
[378712143,1754983847544,-400.0,0.00041095,30]
[378712144,1754983847553,-438.25,0.00041095,30]
[378712145,1754983847563,-400.0,0.00041095,30]
[378712146,1754983847572,-451.83882526,0.00041095,30]
[378712147,1754983847581,-357.09789674,0.00041095,30]
[378712148,1754983847591,-400.0,0.00041095,30]
[378712149,1754983847600,-750.48,0.00041095,30]
[378712150,1754983847610,-151.0,0.00041095,30]
[378712151,1754983847618,-400.0,0.00041095,30]
[378712152,1754983847628,-400.0,0.00041095,30]
[378712153,1754983847637,-151.0,0.00041095,30]
[378712154,1754983847646,-466.23866762,0.00041095,30]
[378712155,1754983847655,-400.0,0.00041095,30]
[378712156,1754983847664,-500.0,0.00041095,30]
[378712157,1754983847673,-577.01,0.00041095,30]
[378712158,1754983847682,-400.0,0.00041095,30]
[378712159,1754983847692,-1857.07,0.00041095,30]
[378712160,1754983847701,-763.49,0.00041095,30]
[378712161,1754983847711,-400.0,0.00041095,30]
[378712162,1754983847720,-400.0,0.00041095,30]
[378712163,1754983847730,-400.0,0.00041095,30]
[378712164,1754983847739,-400.0,0.00041095,30]
[378712165,1754983847748,-205.48277022,0.00041095,30]
[378712166,1754983847758,-400.0,0.00041095,30]
[378712167,1754983847767,-400.0,0.00041095,30]
[378712168,1754983847776,-400.0,0.00041095,30]
[378712169,1754983847786,-400.0,0.00041095,30]
[378712170,1754983847795,-400.0,0.00041095,30]
[378712171,1754983847804,-400.0,0.00041095,30]
[378712172,1754983847814,-400.0,0.00041095,30]
[378712173,1754983847823,-400.0,0.00041095,30]
[378712174,1754983847837,-400.0,0.00041095,30]
[378712175,1754983847847,-409.74682507,0.00041095,30]
[378712176,1754983847857,-400.0,0.00041095,30]
[378712177,1754983847866,-400.0,0.00041095,30]
[378712178,1754983847875,-400.0,0.00041095,30]
[378712179,1754983847885,-402.43832754,0.00041095,30]
[378712180,1754983847894,-400.0,0.00041095,30]
[378712181,1754983847904,-1838.23,0.00041095,30]
[378712182,1754983847913,-150.661359,0.00041095,30]
[378712183,1754983847923,-400.0,0.00041095,30]
[378712184,1754983847933,-400.0,0.00041095,30]
[378712185,1754983847942,-400.0,0.00041095,30]
[378712186,1754983847951,-894.260602,0.00041095,30]
[378712187,1754983847961,-400.0,0.00041095,30]
[378712188,1754983847970,-400.0,0.00041095,30]
[378712189,1754983847979,-400.0,0.00041095,30]
[378712190,1754983847988,-1975.475537,0.00041095,30]
[378712191,1754983847997,-400.42355987,0.00041095,30]
[378712192,1754983848007,-400.0,0.00041095,30]
[378712193,1754983848016,-400.0,0.00041095,30]
[378712194,1754983848025,-400.0,0.00041095,30]
[378712195,1754983848034,-400.0,0.00041095,30]
[378712196,1754983848044,-400.0,0.00041095,30]
[378712197,1754983848053,-400.0,0.00041095,30]
[378712198,1754983848062,-375.0,0.00041095,30]
[378712199,1754983848071,-400.0,0.00041095,30]
[378712200,1754983848080,-400.0,0.00041095,30]
[378712201,1754983848089,-400.0,0.00041095,30]
[378712202,1754983848099,-538.45,0.00041095,30]
[378712203,1754983848108,-400.0,0.00041095,30]
[378712204,1754983848117,-400.0,0.00041095,30]
[378712205,1754983848126,-150.0,0.00041112,2]
[378712206,1754983848136,-191.0,0.0004114,30]
[378712207,1754983848145,-153.57654823,0.0004119,120]
[378712208,1754983848154,-150.0,0.00041226,30]
[378712209,1754983848164,-150.7,0.00041227,2]
[378712210,1754983848173,-1304.86,0.00041257,2]
[378712211,1754983848183,-186.44,0.00041258,91]
[378712212,1754983848192,-258.50229846,0.00041258,28]
[378712213,1754983848203,-157.07813274,0.00041267,15]
[378712214,1754983848212,-5966.86535532,0.00041267,15]
[378712215,1754983848221,-2507.10817183,0.00041268,13]
[378712216,1754983848231,-151.0,0.00041268,30]
[378712217,1754983848240,-295.564974,0.00041268,30]
[378712218,1754983848250,-150.0,0.00041317,2]
[378712219,1754983848259,-150.0,0.00041323,2]
[378712220,1754983848269,-65814.202133,0.00041358,3]
[378712221,1754983848282,-152.037499,0.00041358,30]
[378712222,1754983848299,-151.0,0.00041358,30]
[378712223,1754983848313,-151.0,0.00041359,30]
[378712224,1754983848324,-151.0,0.00041359,30]
[378712225,1754983848337,-260.39091,0.00041359,30]
[378712226,1754983848351,-151.0,0.00041359,30]
[378712227,1754983848365,-151.0,0.00041359,30]
[378712228,1754983848378,-32907.1010665,0.00041359,3]
[378712229,1754983848392,-150.0,0.00041363,2]
[378712230,1754983848404,-400.0,0.00041367,30]
[378712231,1754983848416,-400.0,0.00041367,30]
[378712232,1754983848426,-400.0,0.00041367,30]
[378712233,1754983848439,-1734.273936,0.00041367,30]
[378712234,1754983848452,-400.0,0.00041367,30]
[378712235,1754983848465,-456.31,0.00041367,30]
[378712236,1754983848478,-153.791733,0.00041367,30]
[378712237,1754983848491,-400.0,0.00041367,30]
[378712238,1754983848505,-1202.25,0.00041367,30]
[378712239,1754983848518,-1808.18,0.00041367,30]
[378712240,1754983848532,-416.31,0.00041367,30]
[378712241,1754983848546,-401.17789438,0.00041367,30]
[378712242,1754983848558,-400.0,0.00041367,30]
[378712243,1754983848572,-441.42,0.00041367,30]
[378712244,1754983848584,-400.0,0.00041367,30]
[378712245,1754983848597,-400.0,0.00041367,30]
[378712246,1754983848611,-400.0,0.00041367,30]
[378712247,1754983848624,-400.0,0.00041367,30]
[378712248,1754983848637,-400.0,0.00041367,30]
[378712249,1754983848647,-400.0,0.00041367,30]
[378712250,1754983848659,-400.0,0.00041367,30]
[378712251,1754983848672,-285.34147731,0.00041367,30]
[378712252,1754983848693,-114.65852269,0.00041367,30]
[378712253,1754983848703,-241.22147731,0.00041367,30]
[378712254,1754983850976,250.0,0.00015,2]
[378712283,1754984708058,387.777015,7.945e-05,2]
[378712284,1754984716520,171.33,0.00013699,2]
[378712301,1754985032416,-163.81286783,0.00029919,2]
[378712302,1754985032426,-512.96722227,0.00030019,120]
[378712303,1754985032440,-487.03277773,0.00030019,120]
[378712304,1754985032450,-100.45678327,0.00030019,120]
[378712305,1754985032462,-199.54321673,0.00030019,120]
[378712306,1754985032471,-250.0,0.00030019,2]
[378712307,1754985032481,-327.3295032,0.00030372,2]
[378712308,1754985032493,-14.37459918,0.00030372,2]
[378712309,1754985032504,-1000.0,0.00030373,120]
[378712310,1754985032518,-300.0,0.00030373,120]
[378712311,1754985032527,-1600.0,0.00032999,3]
[378712312,1754985032537,-2699.0,0.00033,5]
[378712313,1754985032546,-241.08,0.00033455,2]
[378712314,1754985032555,-300.0,0.00033644,3]
[378712315,1754985032564,-200.0,0.00034,30]
[378712316,1754985032574,-531.26,0.00035009,2]
[378712317,1754985032583,-241.08,0.00035186,2]
[378712318,1754985032592,-800.0,0.000356,3]
[378712319,1754985032601,-1608.892461,0.00036731,2]
[378712320,1754985032613,-179.89237227,0.00036916,2]
[378712321,1754985032624,-61.18762773,0.00036916,2]
[378712322,1754985032633,-400.0,0.00037207,3]
[378712323,1754985032643,-150.0,0.00037208,7]
[378712324,1754985032652,-150.0,0.00037208,7]
[378712325,1754985032662,-150.0,0.00037208,7]
[378712326,1754985032671,-150.0,0.00037208,7]
[378712327,1754985032680,-150.0,0.00037208,7]
[378712328,1754985032690,-150.0,0.00037208,7]
[378712329,1754985032699,-153.0,0.00038,120]
[378712330,1754985032708,-1780.35,0.00038318,2]
[378712331,1754985032717,-306.78,0.00038464,2]
[378712332,1754985032727,-195.75149176,0.00038482,15]
[378712333,1754985032737,-280.85403038,0.00038482,15]
[378712334,1754985032746,-174.08056842,0.00038482,15]
[378712335,1754985032756,-251.85709643,0.00038482,15]
[378712336,1754985032765,-13852.91904044,0.00038483,2]
[378712337,1754985032798,-10047.08095956,0.00038483,2]
[378712338,1754985032807,-150.0,0.00038586,7]
[378712340,1754985032816,-666.0,0.00038617,3]
[378712342,1754985032826,-241.08,0.00038647,2]
[378712344,1754985032835,-1869.54724376,0.00038647,2]
[378712346,1754985032845,-5295.87546647,0.00038647,2]
[378712347,1754985032856,-60144.83206089,0.00038647,2]
[378712348,1754985033081,-2302.5,0.00038647,2]
[378712349,1754985033092,-455.54220666,0.00038647,2]
[378712350,1754985033123,-3855.22461973,0.00038647,2]
[378712351,1754985033135,-813.23248693,0.00038647,2]
[378712352,1754985033146,-7043.69874539,0.00038647,2]
[378712353,1754985033157,-1677.49885975,0.00038647,2]
[378712365,1754985038351,-3811.27831042,0.00038647,2]
[378712366,1754985038361,-2061.78,0.00038673,30]
[378712367,1754985038371,-220.91,0.000387,2]
[378712368,1754985038380,-5000.0,0.0003873,120]
[378712369,1754985038389,-167.98,0.00038779,2]
[378712370,1754985038398,-383.8,0.00038783,120]
[378712371,1754985038407,-167.98,0.00038843,2]
[378712372,1754985038417,-180.309,0.00038908,53]
[378712373,1754985038426,-167.98,0.00038908,2]
[378712374,1754985038440,-999.789,0.00038908,53]
[378712375,1754985038450,-1000.0,0.00038936,2]
[378712376,1754985038461,-874.89198843,0.00038964,3]
[378712377,1754985038571,-13.10801157,0.00038964,3]
[378712378,1754985038581,-167.98,0.00038972,2]
[378712379,1754985038592,-167.98,0.00039037,2]
[378712380,1754985038602,-167.98,0.00039102,2]
[378712381,1754985038611,-65.07800516,0.00039162,2]
[378712463,1754985040230,-483.4,0.00039147,3]
[378712466,1754985040626,-404.6,0.00039147,3]
[378712467,1754985040636,-134.92199484,0.00039162,2]
[378712468,1754985040646,-167.98,0.00039166,2]
[378712469,1754985040655,-169.1,0.00039469,2]
[378712470,1754985040665,-888.0,0.00039647,3]
[378712471,1754985040675,-153.0,0.000399,120]
[378712472,1754985040684,-150.7,0.0003991,2]
[378712473,1754985040694,-150.0,0.00039964,7]
[378712474,1754985040703,-518.0,0.0004,2]
[378712475,1754985040713,-241.08,0.00040377,2]
[378712476,1754985040722,-306.78,0.00040387,2]
[378712477,1754985040732,-662.74,0.000406,7]
[378712478,1754985040743,-150.0,0.00040735,2]
[378712479,1754985040752,-400.0,0.000408,120]
[378712480,1754985040762,-167.1,0.0004084,2]
[378712481,1754985040771,-400.0,0.000409,120]
[378712482,1754985040780,-200.0,0.0004098,120]
[378712483,1754985040790,-5600.22539569,0.00040985,15]
[378712484,1754985040799,-153.57654823,0.00040985,120]
[378712485,1754985040808,-180.30431387,0.00040985,15]
[378712486,1754985040817,-15948.32778643,0.00040995,15]
[378712487,1754985040827,-2339.96762706,0.00040995,13]
[378712488,1754985040836,-510.52770539,0.00040995,28]
[378712490,1754985040845,-6993.14,0.00041,120]
[378712491,1754985040854,-10000.0,0.00041,120]
[378712492,1754985040863,-400.0,0.00041,120]
[378712493,1754985040872,-320.17101524,0.00041006,2]
[378712494,1754985040881,-150.0,0.00041048,2]
[378712495,1754985040890,-150.0,0.00041054,2]
[378712496,1754985040899,-150.0,0.00041069,2]
[378712497,1754985040909,-321.80617363,0.00041073,5]
[378712498,1754985040918,-205.36714479,0.00041073,5]
[378712499,1754985040927,-500.0,0.00041073,5]
[378712500,1754985040936,-500.0,0.00041073,5]
[378712501,1754985040946,-500.0,0.00041073,2]
[378712502,1754985040955,-500.0,0.00041073,5]
[378712503,1754985040964,-500.0,0.00041073,5]
[378712504,1754985040973,-108861.38101927,0.00041085,31]
[378712505,1754985040985,-381.35645635,0.00041085,31]
[378712514,1754985043628,-176.60801016,0.00030272,2]
[378712515,1754985043638,-1030.09198994,0.00041085,31]
[378712516,1754985043649,-6186.50000005,0.00041085,31]
[378712517,1754985043661,-468.88590522,0.00041085,31]
[378712518,1754985043710,-28749.72154741,0.00041085,31]
[378712519,1754985043720,-7278.03289461,0.00041085,61]
[378712520,1754985043729,-151.0,0.00041085,30]
[378712521,1754985043739,-151.570663,0.00041085,30]
[378712522,1754985043749,-156.824072,0.00041085,30]
[378712523,1754985043758,-17682.81783639,0.00041085,3]
[378712524,1754985043781,-5371.84866905,0.00041085,3]
[378712526,1754985046429,-32415.50482354,0.00041085,3]
[378712528,1754985047680,-108005.0,0.00041085,3]
[378712537,1754985237504,177.087535,0.00016438,2]
[378712538,1754985257052,152.046391,0.00016438,2]
[378712539,1754985297932,154.474248,0.00016438,2]
[378712540,1754985298255,154.474248,0.00016438,2]
[378712541,1754985298559,154.474248,0.00016438,2]
[378712542,1754985299195,154.474248,0.00016438,2]
[378712543,1754985299493,154.474248,0.00016438,2]
[378712544,1754985299804,154.474248,0.00016438,2]
[378712545,1754985300144,154.474248,0.00016438,2]
[378712546,1754985300460,139.06058609,0.00016474,2]
[378712547,1754985300488,15.41366191,0.00016474,2]
[378712548,1754985300758,154.474248,0.00016712,2]
[378712549,1754985301084,154.474248,0.00016712,2]
[378712550,1754985301391,154.474248,0.00016986,2]
[378712551,1754985317064,152.046391,0.00016438,2]
[378712552,1754985322751,150.766322,0.00016438,2]
[378712553,1754985329682,176.167855,0.00016438,2]
[378712554,1754985330063,176.167855,0.00016438,2]
[378712555,1754985330468,176.167855,0.00016438,2]
[378712556,1754985330834,176.167855,0.00016474,2]
[378712557,1754985330907,155.907593,0.00016438,2]
[378712558,1754985331139,176.167855,0.00016712,2]
[378712559,1754985331199,155.907593,0.00016438,2]
[378712560,1754985331644,134.31768318,0.00016438,2]
[378712561,1754985331670,21.58990982,0.00016438,2]
[378712562,1754985331956,155.907593,0.00016438,2]
[378712563,1754985332322,155.907593,0.00016438,2]
[378712564,1754985333013,155.907593,0.00016438,2]
[378712565,1754985333356,155.907593,0.00016438,2]
[378712566,1754985333650,155.907593,0.00016474,2]
[378712567,1754985333966,155.907593,0.00016712,2]
[378712568,1754985334350,155.907593,0.00016712,2]
[378712569,1754985334683,155.907593,0.00016986,2]
[378712676,1754985682581,2703.64,0.00024,120]
[378712681,1754985698490,161.36,0.00013699,2]
[378712853,1754986166251,-4843.78953497,0.000328,3]
[378712857,1754986231690,-666.0,0.000325,3]
[378712858,1754986231700,-1000.0,0.0003305,120]
[378712859,1754986231709,-5512.0,0.000336,5]
[378712860,1754986231719,-1200.0,0.0003403,3]
[378712861,1754986231729,-250.0,0.00034031,2]
[378712862,1754986231740,-180.81,0.00034362,2]
[378712863,1754986231954,-250.0,0.00034465,2]
[378712864,1754986231964,-400.0,0.00035173,2]
[378712865,1754986231973,-843.0035059,0.00035174,2]
[378712867,1754986231983,-167.52934824,0.00035412,7]
[378712869,1754986231992,-3422.046665,0.00035983,2]
[378712871,1754986232002,-180.81,0.00036092,2]
[378712873,1754986232012,-957.54410547,0.000363,120]
[378712878,1754986232076,-42.45589453,0.000363,120]
[378712880,1754986232086,-500.0,0.000367,2]
[378712882,1754986232095,-300.0,0.0003718,120]
[378712884,1754986232107,-250.0,0.0003718,2]
[378712886,1754986232116,-150.0,0.00037208,7]
[378712888,1754986232126,-150.0,0.00037208,7]
[378712890,1754986232136,-150.0,0.00037208,7]
[378712892,1754986232146,-150.0,0.00037208,7]
[378712894,1754986232156,-150.0,0.00037208,7]
[378712896,1754986232165,-202.94534904,0.00037208,7]
[378712898,1754986232175,-150.0,0.00037208,7]
[378712900,1754986232184,-162.51060358,0.00037208,7]
[378712902,1754986232194,-150.0,0.00037208,7]
[378712904,1754986232204,-233.01995604,0.00037208,7]
[378712906,1754986232213,-255.89116141,0.00037208,7]
[378712908,1754986232222,-560.0,0.00037707,2]
[378712910,1754986232231,-180.81,0.00037823,2]
[378712912,1754986232240,-799.831,0.00037823,49]
[378712914,1754986232250,-2212.30913856,0.000385,6]
[378712921,1754986232308,-1023.17897612,0.000385,6]
[378712923,1754986232320,-976.82102388,0.000385,6]
[378712926,1754986232332,-703.94000243,0.000385,6]
[378712928,1754986232344,-602.37001317,0.000385,6]
[378712930,1754986232355,-1611.60998,0.000385,6]
[378712932,1754986232366,-1193.88313273,0.000385,6]
[378712935,1754986232385,-1586.915445,0.000385,6]
[378712938,1754986232396,-88.97228811,0.000385,6]
[378712940,1754986232407,-271.55444022,0.0003856,6]
[378712942,1754986232418,-955.14093574,0.0003856,6]
[378713172,1754986237366,-562.4845,0.0003856,6]
[378713174,1754986237463,-8210.82012404,0.0003856,6]
[378713175,1754986237472,-351.81,0.00038626,120]
[378713176,1754986237482,-150.0,0.000387,2]
[378713177,1754986237492,-13605.67,0.00038904,2]
[378713178,1754986237502,-184.06,0.00038925,2]
[378713179,1754986237512,-1260.28246887,0.00038956,2]
[378713180,1754986237522,-170.0,0.00038985,7]
[378713181,1754986237533,-20000.0,0.00039,8]
[378713182,1754986237543,-888.0,0.00039,3]
[378713183,1754986237552,-1293.41,0.00039071,2]
[378713184,1754986237561,-150.0,0.00039275,7]
[378713185,1754986237571,-150.0,0.00039275,7]
[378713186,1754986237580,-573.31315836,0.00039329,2]
[378713187,1754986237594,-426.68684164,0.00039329,2]
[378713188,1754986237604,-267.31546818,0.00039385,2]